bitfinex-derivatives/quotes_BTCF0:USTF0_20210703
["timestamp","ask_amount","ask_price","bid_price","bid_amount"]
[1625292648299,0.43877544,33780.0,33779.0,0.29957544]
[1625292648795,0.49777544,33780.0,33779.0,0.29957544]
[1625292648896,0.49777544,33780.0,33779.0,0.24057544]
[1625292649298,0.49777544,33780.0,33779.0,0.29957544]
[1625292650047,0.43877544,33780.0,33779.0,0.29957544]
[1625292650148,0.50928315,33780.0,33779.0,0.29957544]
[1625292651601,0.50928315,33780.0,33779.0,0.059]
[1625292652956,0.45028315,33780.0,33779.0,0.059]
[1625292653057,0.25208315,33780.0,33779.0,0.059]
[1625292654009,0.31108315,33780.0,33779.0,0.059]
[1625292654461,0.31108315,33780.0,33779.0,0.06511759]
[1625292654964,0.25208315,33780.0,33779.0,0.06511759]
[1625292655111,0.25208315,33780.0,33779.0,0.35591759]
[1625292657565,0.25208315,33780.0,33779.0,0.59649303]
[1625292661922,0.25208315,33780.0,33779.0,0.53749303]
[1625292662124,0.25208315,33780.0,33779.0,0.59649303]
[1625292662371,0.25208315,33780.0,33779.0,0.53749303]
[1625292662472,0.25208315,33780.0,33779.0,0.59649303]
[1625292673293,0.31108315,33780.0,33779.0,0.59649303]
[1625292674697,0.50469315,33780.0,33779.0,0.59649303]
[1625292677906,0.50469315,33780.0,33779.0,0.53749303]
[1625292678706,0.50469315,33780.0,33779.0,0.53137544]
[1625292678707,0.53540864,33780.0,33779.0,0.53137544]
[1625292679762,0.53540864,33780.0,33779.0,0.2908]
[1625292679861,0.53540864,33780.0,33772.0,0.24057544]
[1625292679967,0.53540864,33780.0,33772.0,0.29957544]
[1625292680161,0.53540864,33780.0,33772.0,0.24057544]
[1625292680264,0.04195257,33779.0,33773.0,0.00623586]
[1625292680363,0.10095257,33779.0,33773.0,0.00623586]
[1625292680468,5.0719,33776.0,33773.0,0.06523586]
[1625292680714,5.1309,33776.0,33773.0,0.06523586]
[1625292680813,5.1309,33776.0,33773.0,0.059]
[1625292681063,0.01123658,33775.0,33773.0,0.059]
[1625292681214,0.07023658,33775.0,33773.0,0.059]
[1625292681612,0.01123701,33774.0,33773.0,0.059]
[1625292681712,0.31081245,33774.0,33773.0,0.059]
[1625292683519,0.52098558,33774.0,33773.0,0.059]
[1625292685126,0.31081245,33774.0,33773.0,0.059]
[1625292686076,0.31081245,33774.0,33769.0,0.24057544]
[1625292686178,0.36981245,33774.0,33769.0,0.24057544]
[1625292686376,0.01123765,33773.0,33769.0,0.24057544]
[1625292686476,0.37301765,33773.0,33764.0,0.25995626]
[1625292686577,0.37301765,33773.0,33764.0,0.31895626]
[1625292686828,0.64201892,33773.0,33764.0,0.059]
[1625292686927,0.01123778,33772.0,33762.0,0.25989203]
[1625292687178,0.07023778,33772.0,33762.0,0.25989203]
[1625292687277,0.12923778,33772.0,33762.0,0.25989203]
[1625292687378,0.12923778,33772.0,33762.0,0.08663068]
[1625292687479,0.0112378,33771.0,33762.0,0.08663068]
[1625292687680,0.1292378,33771.0,33762.0,0.08663068]
[1625292687780,0.24057544,33765.0,33764.0,0.24057544]
[1625292687929,0.53181544,33765.0,33764.0,0.24057544]
[1625292688031,0.59081544,33765.0,33764.0,0.24057544]
[1625292689784,0.83139088,33765.0,33764.0,0.24057544]
[1625292695951,0.89039088,33765.0,33764.0,0.24057544]
[1625292697406,1.39039088,33765.0,33756.0,0.59355886]
[1625292697510,1.39039088,33765.0,33756.0,0.38855886]
[1625292697707,0.01123808,33764.0,33756.0,0.38855886]
[1625292697807,0.72172632,33757.0,33756.0,0.38855886]
[1625292697956,1.47265632,33757.0,33755.0,0.52782356]
[1625292698060,1.53165632,33757.0,33755.0,0.52782356]
[1625292698157,1.53165632,33757.0,33755.0,0.45382356]
[1625292698307,1.54289578,33757.0,33755.0,0.30882356]
[1625292698507,0.01123976,33756.0,33744.0,1.04283931]
[1625292698608,0.12923976,33756.0,33744.0,1.04283931]
[1625292698707,0.62923976,33756.0,33744.0,1.04283931]
[1625292699007,0.618,33756.0,33744.0,0.84283931]
[1625292699109,1.74543956,33752.0,33741.0,0.057]
[1625292699258,4.16857,33748.0,33737.0,1.04396856]
[1625292699408,4.22757,33748.0,33737.0,1.04396856]
[1625292699559,4.22757,33748.0,33738.0,0.00624164]
[1625292699809,0.96230176,33739.0,33738.0,0.00624164]
[1625292699910,1.17521176,33739.0,33738.0,0.00624164]
[1625292700609,1.17521176,33739.0,33734.0,1.21629716]
[1625292700710,1.17521176,33739.0,33738.0,0.059]
[1625292700812,1.17521176,33739.0,33738.0,0.24888]
[1625292700911,0.96230176,33739.0,33738.0,0.30788]
[1625292701113,0.96230176,33739.0,33738.0,0.31412072]
[1625292701310,0.96230176,33739.0,33738.0,5.20102072]
[1625292701514,0.96230176,33739.0,33738.0,7.80029745]
[1625292701814,0.72172632,33739.0,33738.0,8.04087289]
[1625292703269,0.24057544,33748.0,33738.0,8.04087289]
[1625292703569,0.24057544,33748.0,33739.0,0.00623989]
[1625292703669,0.24057544,33748.0,33739.0,0.12423989]
[1625292703921,0.24057544,33752.0,33747.0,0.67490088]
[1625292704021,0.24057544,33752.0,33747.0,0.73390088]
[1625292705820,0.24057544,33752.0,33751.0,0.24057544]
[1625292705923,0.24057544,33752.0,33751.0,0.29957544]
[1625292706724,0.24057544,33752.0,33751.0,0.24057544]
[1625292706974,0.24057544,33752.0,33751.0,0.29957544]
[1625292709827,0.24057544,33752.0,33751.0,4.90607544]
[1625292710229,0.24057544,33752.0,33751.0,0.29957544]
[1625292711733,0.24057544,33752.0,33751.0,0.30581456]
[1625292719895,0.24057544,33752.0,33751.0,0.24681456]
[1625292724762,0.24057544,33752.0,33751.0,0.30581456]
[1625292724863,0.24057544,33752.0,33751.0,0.24681456]
[1625292725413,0.24057544,33752.0,33751.0,0.30581456]
[1625292725563,0.24057544,33752.0,33751.0,0.24681456]
[1625292725764,0.24057544,33752.0,33751.0,0.30581456]
[1625292726214,0.24057544,33752.0,33751.0,0.53273456]
[1625292729274,0.24057544,33759.0,33751.0,0.59173456]
[1625292729624,0.24057544,33759.0,33752.0,0.00623226]
[1625292729824,0.24057544,33759.0,33752.0,0.12423226]
[1625292729925,0.24057544,33759.0,33753.0,1.03423141]
[1625292730025,0.24057544,33759.0,33758.0,0.24057544]
[1625292730126,0.24057544,33759.0,33758.0,0.50268544]
[1625292730227,0.24057544,33759.0,33758.0,0.56168544]
[1625292730475,0.24057544,33759.0,33758.0,0.56791756]
[1625292731831,0.24057544,33759.0,33758.0,0.50891756]
[1625292732881,0.24057544,33759.0,33758.0,0.56791756]
[1625292734187,0.24057544,33759.0,33758.0,0.50891756]
[1625292734286,0.24057544,33759.0,33758.0,0.56791756]
[1625292734988,0.24057544,33759.0,33758.0,0.50891756]
[1625292736091,0.24057544,33759.0,33758.0,0.30580756]
[1625292740750,0.24057544,33762.0,33758.0,0.30580756]
[1625292741248,0.24057544,33762.0,33759.0,0.0062321]
[1625292742052,0.24057544,33762.0,33761.0,0.49163544]
[1625292742303,0.24057544,33762.0,33761.0,0.49786711]
[1625292746458,0.29957544,33762.0,33761.0,0.49786711]
[1625292747357,0.24057544,33762.0,33761.0,0.49786711]
[1625292747457,0.45317544,33762.0,33761.0,0.24680711]
[1625292747557,0.51217544,33762.0,33761.0,0.24680711]
[1625292747857,0.52342605,33762.0,33761.0,0.24680711]
[1625292748360,0.46442605,33762.0,33761.0,0.24680711]
[1625292748660,0.45317544,33762.0,33761.0,0.24680711]
[1625292749765,0.46442581,33762.0,33761.0,0.24680711]
[1625292750764,0.45317544,33762.0,33761.0,0.24680711]
[1625292751668,0.46442584,33762.0,33761.0,0.24680711]
[1625292751868,0.45317544,33762.0,33761.0,0.24680711]
[1625292752218,0.24057544,33762.0,33761.0,0.24680711]
[1625292752618,0.24057544,33762.0,33761.0,0.30580711]
[1625292753121,0.24057544,33762.0,33761.0,0.24680711]
[1625292753272,0.24057544,33762.0,33761.0,0.30580711]
[1625292753473,0.24057544,33762.0,33761.0,0.24680711]
[1625292753573,0.24057544,33762.0,33761.0,0.30580711]
[1625292753674,0.24057544,33762.0,33761.0,0.24680711]
[1625292754226,0.24057544,33762.0,33761.0,0.30580711]
[1625292754325,0.24057544,33762.0,33761.0,0.24680711]
[1625292755175,0.48717544,33762.0,33761.0,0.24680711]
[1625292755778,0.49842403,33762.0,33761.0,0.24680711]
[1625292764643,0.48717544,33762.0,33761.0,0.24680711]
[1625292765944,0.49842405,33762.0,33761.0,0.24680711]
[1625292766844,0.01124861,33762.0,33761.0,0.54860711]
[1625292767047,0.24057544,33765.0,33761.0,0.60760711]
[1625292767244,0.24057544,33765.0,33762.0,0.00623082]
[1625292767444,0.24057544,33765.0,33762.0,0.12423082]
[1625292767545,0.24057544,33765.0,33764.0,0.68799984]
[1625292767695,0.24057544,33765.0,33764.0,0.74699984]
[1625292767797,0.24057544,33765.0,33764.0,0.81223252]
[1625292768197,0.24057544,33769.0,33764.0,1.05280796]
[1625292768697,0.24057544,33769.0,33765.0,0.75313518]
[1625292768897,0.24057544,33769.0,33766.0,0.00623268]
[1625292768996,0.24057544,33769.0,33766.0,0.06523268]
[1625292769450,0.24057544,33769.0,33767.0,0.00623266]
[1625292769549,0.24057544,33769.0,33767.0,0.06523266]
[1625292769899,0.24057544,33769.0,33768.0,0.00623266]
[1625292770149,0.25181918,33769.0,33768.0,0.06523266]
[1625292770249,0.25181918,33769.0,33768.0,0.3058081]
[1625292774256,0.25181918,33769.0,33768.0,0.2468081]
[1625292774759,0.25181918,33769.0,33768.0,0.00623266]
[1625292774960,0.63061918,33769.0,33768.0,0.00623266]
[1625292775061,0.63061918,33769.0,33764.0,0.24057544]
[1625292775210,2.38081993,33769.0,33764.0,0.24057544]
[1625292775560,1.75032896,33766.0,33764.0,0.24057544]
[1625292775760,1.86832896,33766.0,33764.0,0.24057544]
[1625292776061,0.01124517,33765.0,33764.0,0.24057544]
[1625292776210,0.01124517,33765.0,33758.0,0.68928363]
[1625292776211,0.12924517,33765.0,33758.0,0.68928363]
[1625292776311,0.61039605,33765.0,33758.0,0.68928363]
[1625292776560,0.01124542,33764.0,33759.0,0.00623431]
[1625292776661,0.12924542,33764.0,33759.0,0.00623431]
[1625292776861,4.7013,33760.0,33759.0,0.00623431]
[1625292776961,0.27667,33760.0,33759.0,0.00623431]
[1625292777111,0.27667,33760.0,33758.0,0.00623437]
[1625292778266,0.24057544,33759.0,33758.0,0.00623437]
[1625292780423,0.29957544,33759.0,33758.0,0.00623437]
[1625292780522,0.24057544,33759.0,33758.0,0.00623437]
[1625292783577,0.24057544,33759.0,33758.0,0.6951212]
[1625292785080,0.24057544,33759.0,33758.0,1.72824701]
[1625292787741,0.24057544,33759.0,33758.0,1.78724701]
[1625292788190,0.24057544,33759.0,33758.0,3.50788303]
[1625292789340,0.24057544,33759.0,33758.0,3.44888303]
[1625292789642,0.24057544,33759.0,33758.0,3.50788303]
[1625292789743,0.24057544,33759.0,33758.0,3.44888303]
[1625292789992,0.24057544,33759.0,33758.0,3.50788303]
[1625292790643,0.24057544,33759.0,33758.0,3.44888303]
[1625292791144,0.24057544,33759.0,33758.0,3.50788303]
[1625292791944,0.24057544,33759.0,33758.0,3.44888303]
[1625292792394,0.24057544,33759.0,33758.0,3.74845847]
[1625292792594,0.24057544,33759.0,33758.0,3.68945847]
[1625292795203,0.24057544,33759.0,33758.0,2.48501326]
[1625292798562,0.24057544,33759.0,33758.0,1.45188745]
[1625292799263,0.24057544,33759.0,33758.0,0.76300062]
[1625292800671,0.29957544,33759.0,33758.0,0.76300062]
[1625292800968,0.29957544,33759.0,33758.0,0.24680981]
[1625292801269,0.3108228,33759.0,33758.0,0.24680981]
[1625292808486,0.29957544,33759.0,33758.0,0.24680981]
[1625292809787,0.31082275,33759.0,33758.0,0.24680981]
[1625292810088,0.29957544,33759.0,33758.0,0.24680981]
[1625292810841,0.31082273,33759.0,33758.0,0.24680981]
[1625292811192,0.29957544,33759.0,33758.0,0.24680981]
[1625292811391,0.31082272,33759.0,33758.0,0.24680981]
[1625292811942,0.31082272,33759.0,33758.0,0.24057544]
[1625292815697,0.29957544,33759.0,33758.0,0.24680955]
[1625292819707,0.31082233,33759.0,33758.0,0.24680955]
[1625292820461,0.29957544,33759.0,33758.0,0.24680955]
[1625292821814,0.31082235,33759.0,33758.0,0.24680955]
[1625292822114,0.29957544,33759.0,33758.0,0.24680955]
[1625292822613,0.31082223,33759.0,33758.0,0.24680955]
[1625292823768,0.29957544,33759.0,33758.0,0.24680955]
[1625292824017,0.31082228,33759.0,33758.0,0.24680955]
[1625292831234,0.31082228,33759.0,33758.0,0.00623411]
[1625292831535,0.31082228,33759.0,33755.0,0.06523435]
[1625292831735,0.01124781,33758.0,33755.0,0.06523435]
[1625292831935,0.07024781,33758.0,33755.0,0.06523435]
[1625292832035,0.07024781,33758.0,33756.0,0.00623452]
[1625292832239,0.01124815,33757.0,33756.0,0.06523452]
[1625292832338,0.07024815,33757.0,33756.0,0.00623452]
[1625292832537,0.12924815,33757.0,33756.0,0.00623452]
[1625292832688,1.88059188,33757.0,33756.0,0.00623452]
[1625292832789,2.12116732,33757.0,33753.0,0.00623515]
[1625292833040,0.01124866,33756.0,33752.0,0.00623513]
[1625292833188,0.40841866,33756.0,33752.0,0.00623513]
[1625292833288,2.15994275,33756.0,33751.0,0.00623367]
[1625292833589,0.01125181,33755.0,33753.0,0.00623365]
[1625292833689,0.07025181,33755.0,33753.0,0.00623365]
[1625292833790,0.12925181,33755.0,33753.0,0.00623365]
[1625292833890,0.12925181,33755.0,33752.0,0.00623365]
[1625292834140,0.01125183,33754.0,33750.0,0.34496596]
[1625292834241,0.12925183,33754.0,33750.0,0.34496596]
[1625292834591,0.12925183,33754.0,33751.0,0.00623366]
[1625292834743,0.48115088,33752.0,33751.0,0.00623366]
[1625292834843,0.54015088,33752.0,33751.0,0.00623366]
[1625292835050,4.24025088,33752.0,33751.0,0.00623366]
[1625292835146,4.2515031,33752.0,33751.0,0.00623366]
[1625292835397,4.2515031,33752.0,33750.0,0.00623396]
[1625292835698,0.01125222,33751.0,33750.0,0.00623396]
[1625292835847,0.07025222,33751.0,33750.0,0.00623396]
[1625292835948,0.07025222,33751.0,33749.0,0.00623396]
[1625292836248,0.0112523,33750.0,33749.0,0.00623396]
[1625292836348,0.0702523,33750.0,33749.0,0.00623396]
[1625292836448,0.059,33750.0,33749.0,0.00623396]
[1625292836799,0.29957544,33750.0,33749.0,0.00623396]
[1625292838303,0.29957544,33750.0,33748.0,0.00623411]
[1625292838857,0.54015088,33750.0,33748.0,0.00623411]
[1625292839857,0.54015088,33750.0,33747.0,0.00623438]
[1625292840158,0.54015088,33750.0,33745.0,0.00623438]
[1625292840258,0.54015088,33750.0,33746.0,0.34494529]
[1625292840658,0.54015088,33750.0,33747.0,0.00623431]
[1625292842512,0.54015088,33750.0,33746.0,0.00623436]
[1625292842762,0.24057544,33747.0,33746.0,0.00623436]
[1625292842862,0.53021544,33747.0,33746.0,0.00623436]
[1625292845165,0.53021544,33747.0,33745.0,0.00623447]
[1625292849227,0.53021544,33747.0,33744.0,0.41298024]
[1625292849378,0.53021544,33747.0,33744.0,0.47198024]
[1625292849478,0.53021544,33747.0,33744.0,0.29957544]
[1625292850832,0.24057544,33745.0,33744.0,0.29957544]
[1625292851333,0.24057544,33745.0,33744.0,0.30581118]
[1625292851533,0.24057544,33745.0,33744.0,0.29957544]
[1625292851837,0.24057544,33745.0,33744.0,0.30581112]
[1625292853337,0.24057544,33745.0,33744.0,0.47818877]
[1625292853638,0.24057544,33745.0,33744.0,1.16731235]
[1625292854441,0.24057544,33745.0,33744.0,0.82271186]
[1625292854792,0.48921544,33745.0,33744.0,1.51173533]
[1625292855046,0.48921544,33745.0,33744.0,1.16727959]
[1625292855444,0.48921544,33745.0,33744.0,0.47817442]
[1625292855745,0.48921544,33745.0,33744.0,0.82286466]
[1625292856046,0.48921544,33745.0,33744.0,0.30581112]
[1625292856895,0.48921544,33745.0,33744.0,0.47814572]
[1625292858098,0.48921544,33745.0,33744.0,0.82285122]
[1625292858501,0.48921544,33745.0,33744.0,0.82258545]
[1625292859001,0.48921544,33745.0,33744.0,1.51141022]
[1625292859451,0.48921544,33745.0,33744.0,0.82258545]
[1625292859952,0.48921544,33745.0,33744.0,1.1671336]
[1625292860353,0.48921544,33745.0,33744.0,0.82266834]
[1625292860952,0.48921544,33745.0,33744.0,0.47812019]
[1625292861303,0.48921544,33745.0,33744.0,0.30581112]
[1625292861601,0.48921544,33745.0,33744.0,0.06523568]
[1625292865809,0.50046976,33745.0,33744.0,0.06523568]
[1625292866411,0.55946976,33745.0,33744.0,0.06523568]
[1625292867316,0.50046976,33745.0,33744.0,0.06523568]
[1625292867416,0.48921544,33745.0,33744.0,0.06523568]
[1625292868019,0.48921544,33745.0,33744.0,0.58216457]
[1625292868419,0.48921544,33745.0,33744.0,0.23754531]
[1625292868870,0.48921544,33745.0,33744.0,0.58216604]
[1625292869472,0.50046904,33745.0,33744.0,0.58216604]
[1625292869674,0.50046904,33745.0,33744.0,0.23754531]
[1625292869926,0.48921544,33745.0,33744.0,0.23754531]
[1625292870224,0.50046903,33745.0,33744.0,0.23754531]
[1625292870475,0.48921544,33745.0,33744.0,0.23754531]
[1625292870929,0.48921544,33745.0,33744.0,0.58225678]
[1625292873235,0.48921544,33745.0,33744.0,0.23754531]
[1625292874083,0.48921544,33745.0,33744.0,0.58224905]
[1625292875338,0.48921544,33745.0,33744.0,0.92693389]
[1625292875437,0.24057544,33745.0,33744.0,0.92693389]
[1625292875791,0.24057544,33745.0,33744.0,2.3045961]
[1625292876990,0.24057544,33745.0,33744.0,2.54517154]
[1625292883301,5.46637544,33745.0,33744.0,2.54517154]
[1625292883704,0.24057544,33745.0,33744.0,2.54517154]
[1625292884901,0.29957544,33745.0,33744.0,2.54517154]
[1625292886102,4.39687544,33745.0,33744.0,2.54517154]
[1625292886205,0.29957544,33745.0,33744.0,1.51175197]
[1625292886955,0.24057544,33745.0,33744.0,1.51175197]
[1625292887155,0.29957544,33745.0,33744.0,1.51175197]
[1625292887806,0.24057544,33745.0,33744.0,1.51175197]
[1625292888006,0.29957544,33745.0,33744.0,1.51175197]
[1625292888709,0.24057544,33745.0,33744.0,1.51175197]
[1625292889108,0.29957544,33745.0,33744.0,1.51175197]
[1625292889458,0.24057544,33745.0,33744.0,1.51175197]
[1625292890259,0.29957544,33745.0,33744.0,1.51175197]
[1625292890560,0.29957544,33745.0,33744.0,2.54829938]
[1625292891215,0.24057544,33745.0,33744.0,2.54829938]
[1625292893668,0.29957544,33745.0,33744.0,2.54829938]
[1625292894118,0.24057544,33745.0,33744.0,2.54829938]
[1625292894419,0.29957544,33745.0,33744.0,2.54829938]
[1625292894822,0.24057544,33745.0,33744.0,2.54829938]
[1625292894921,0.29957544,33745.0,33744.0,2.54829938]
[1625292896123,0.24057544,33745.0,33744.0,2.54829938]
[1625292896275,0.29957544,33745.0,33744.0,2.54829938]
[1625292896527,0.24057544,33745.0,33744.0,2.54829938]
[1625292897277,0.29957544,33745.0,33744.0,2.54829938]
[1625292897675,0.24057544,33745.0,33744.0,2.54829938]
[1625292897779,0.29957544,33745.0,33744.0,2.54829938]
[1625292898326,0.24057544,33745.0,33744.0,2.54829938]
[1625292898725,0.29957544,33745.0,33744.0,2.54829938]
[1625292899978,0.60711544,33745.0,33744.0,2.54829938]
[1625292900479,0.60711544,33745.0,33744.0,2.30772394]
[1625292900579,0.60711544,33745.0,33744.0,2.24872394]
[1625292900681,0.67737123,33745.0,33744.0,2.24872394]
[1625292901031,2.43185103,33745.0,33744.0,0.00623568]
[1625292901231,2.67242647,33745.0,33744.0,0.00623568]
[1625292901482,2.67242647,33745.0,33743.0,0.00623473]
[1625292901788,1.75465149,33744.0,33741.0,0.00623457]
[1625292901885,1.76590831,33744.0,33741.0,0.00623457]
[1625292901985,1.88390831,33744.0,33740.0,0.25987294]
[1625292902237,1.88390831,33744.0,33742.0,0.25978559]
[1625292902337,0.01125624,33743.0,33742.0,0.5403597]
[1625292902435,0.07025624,33743.0,33742.0,0.5403597]
[1625292902686,0.07025624,33743.0,33742.0,1.14608003]
[1625292903035,0.07025624,33743.0,33742.0,0.79987766]
[1625292903285,0.31083168,33743.0,33742.0,0.79987766]
[1625292903385,0.31083168,33743.0,33742.0,1.14606003]
[1625292903786,0.31083168,33743.0,33742.0,0.79987766]
[1625292904636,0.31083168,33743.0,33742.0,1.14603896]
[1625292904888,0.29957544,33743.0,33742.0,1.14603896]
[1625292905139,0.29957544,33743.0,33742.0,1.49208437]
[1625292905238,0.29957544,33743.0,33742.0,1.73265981]
[1625292905387,0.24057544,33743.0,33742.0,1.73265981]
[1625292905538,0.24057544,33743.0,33742.0,2.77072075]
[1625292905738,0.24057544,33743.0,33742.0,7.91712075]
[1625292906189,0.24057544,33743.0,33742.0,2.77072075]
[1625292906690,0.24057544,33743.0,33742.0,3.98100575]
[1625292910900,0.24057544,33743.0,33742.0,4.04000575]
[1625292911300,0.24057544,33745.0,33742.0,4.28058119]
[1625292911451,0.24057544,33745.0,33742.0,5.66337097]
[1625292911550,0.24057544,33745.0,33743.0,0.00623164]
[1625292911651,0.24057544,33751.0,33743.0,0.12423164]
[1625292911753,0.24057544,33751.0,33744.0,3.45338466]
[1625292911853,0.24057544,33751.0,33744.0,4.83473852]
[1625292912003,0.24057544,33751.0,33744.0,4.95273852]
[1625292912102,0.24057544,33751.0,33744.0,4.9589695]
[1625292912356,0.24057544,33755.0,33750.0,3.6718566]
[1625292912453,0.24057544,33755.0,33750.0,3.7898566]
[1625292912654,0.24057544,33755.0,33754.0,2.24045484]
[1625292912753,0.24057544,33755.0,33754.0,2.29945484]
[1625292912855,0.24057544,33755.0,33754.0,2.30568516]
[1625292912954,0.24057544,33755.0,33754.0,2.36468516]
[1625292913255,0.24057544,33755.0,33754.0,6.44208516]
[1625292913355,0.24057544,33755.0,33754.0,6.92323604]
[1625292914107,0.24057544,33755.0,33754.0,2.84583604]
[1625292914457,0.24057544,33755.0,33754.0,2.78683604]
[1625292915259,0.24057544,33755.0,33754.0,6.53393604]
[1625292915409,0.24057544,33755.0,33754.0,6.59293604]
[1625292915559,0.24057544,33755.0,33754.0,5.55887996]
[1625292915861,0.24057544,33755.0,33754.0,6.59115544]
[1625292916165,0.24057544,33755.0,33754.0,6.53215544]
[1625292916265,0.24057544,33755.0,33754.0,2.84405544]
[1625292916367,0.24057544,33755.0,33754.0,2.78505544]
[1625292917066,0.24057544,33755.0,33754.0,1.75277996]
[1625292918018,0.24057544,33755.0,33754.0,1.81177996]
[1625292918968,0.24057544,33755.0,33754.0,1.75277996]
[1625292919221,0.24057544,33755.0,33754.0,1.81177996]
[1625292919321,0.24057544,33755.0,33754.0,1.75277996]
[1625292921624,0.24057544,33755.0,33754.0,1.74654964]
[1625292921725,0.24057544,33755.0,33754.0,1.40124741]
[1625292922075,0.24057544,33755.0,33754.0,1.05717892]
[1625292922276,0.24057544,33755.0,33754.0,1.11617892]
[1625292922676,0.24057544,33755.0,33754.0,1.12240931]
[1625292922925,0.24057544,33755.0,33754.0,1.05717892]
[1625292923176,0.24057544,33755.0,33754.0,1.11617892]
[1625292923276,0.24057544,33755.0,33754.0,1.05717892]
[1625292923478,0.24057544,33755.0,33754.0,1.40093826]
[1625292923929,0.24057544,33755.0,33754.0,1.1148112]
[1625292924079,0.24057544,33755.0,33754.0,1.45855456]
[1625292924229,0.24057544,33755.0,33754.0,1.39955456]
[1625292924380,0.24057544,33755.0,33754.0,1.45855456]
[1625292924830,0.24057544,33755.0,33754.0,1.39955456]
[1625292924930,0.24057544,33755.0,33754.0,1.45855456]
[1625292925133,0.24057544,33755.0,33754.0,1.11479013]
[1625292925338,0.24057544,33755.0,33754.0,1.12102034]
[1625292925587,0.24057544,33755.0,33754.0,1.80765388]
[1625292927040,0.24057544,33755.0,33754.0,1.74865388]
[1625292927142,0.24057544,33755.0,33754.0,1.74242367]
[1625292927243,0.24057544,33755.0,33754.0,1.82832186]
[1625292927342,0.24057544,33755.0,33754.0,1.14130884]
[1625292927594,0.24057544,33755.0,33754.0,1.20030884]
[1625292927694,0.24057544,33755.0,33754.0,1.14130884]
[1625292928047,0.24057544,33755.0,33754.0,0.79779001]
[1625292928395,0.24057544,33755.0,33754.0,0.73879001]
[1625292928797,0.24057544,33755.0,33754.0,0.56703059]
[1625292929100,0.24057544,33755.0,33754.0,0.7388419]
[1625292929348,0.24057544,33755.0,33754.0,0.7978419]
[1625292929448,0.24057544,33755.0,33754.0,0.62603059]
[1625292930152,0.24057544,33755.0,33754.0,0.54015088]
[1625292930302,0.24057544,33755.0,33754.0,0.59915088]
[1625292930553,0.24057544,33755.0,33754.0,0.54015088]
[1625292932203,0.24057544,33755.0,33754.0,0.48115088]
[1625292932454,0.24057544,33755.0,33754.0,0.54015088]
[1625292934509,0.24057544,33755.0,33754.0,0.60538228]
[1625292935014,0.24057544,33755.0,33754.0,0.69095468]
[1625292935211,0.24057544,33755.0,33754.0,0.63195468]
[1625292935310,0.24057544,33755.0,33754.0,0.69095468]
[1625292935411,0.24057544,33755.0,33754.0,0.63195468]
[1625292935863,0.24057544,33755.0,33754.0,0.69095468]
[1625292936064,0.24057544,33755.0,33754.0,1.20433106]
[1625292936615,0.24057544,33755.0,33754.0,0.86208014]
[1625292937416,0.24057544,33758.0,33754.0,0.86208014]
[1625292937516,0.24057544,33758.0,33754.0,0.80308014]
[1625292937768,0.24057544,33758.0,33755.0,0.00623112]
[1625292937869,0.24057544,33758.0,33755.0,0.06523112]
[1625292938321,0.24057544,33758.0,33756.0,0.00623122]
[1625292938421,0.24057544,33758.0,33756.0,0.06523122]
[1625292938869,0.24057544,33758.0,33757.0,0.00623136]
[1625292938969,0.24057544,33758.0,33757.0,0.06523136]
[1625292939069,0.24057544,33758.0,33757.0,0.00623136]
[1625292939319,0.24057544,33758.0,33755.0,0.00623136]
[1625292940123,0.29957544,33758.0,33755.0,0.00623136]
[1625292940224,0.24057544,33758.0,33755.0,0.00623136]
[1625292940324,0.29957544,33758.0,33755.0,0.00623136]
[1625292940928,0.01125044,33757.0,33755.0,0.00623136]
[1625292941175,0.01125044,33757.0,33755.0,0.06523136]
[1625292941275,0.01125044,33757.0,33755.0,0.00623136]
[1625292941477,0.01125044,33757.0,33756.0,0.0062317]
[1625292941977,0.01125044,33757.0,33755.0,0.00623167]
[1625292943784,0.01125044,33757.0,33755.0,0.06523167]
[1625292944135,0.01125044,33757.0,33756.0,0.00623167]
[1625292944336,0.01125044,33757.0,33756.0,0.06523167]
[1625292945939,0.07025044,33757.0,33756.0,0.06523167]
[1625292946238,0.01125044,33757.0,33756.0,0.06523167]
[1625292947090,0.07025044,33757.0,33756.0,0.06523167]
[1625292948743,0.01125044,33757.0,33756.0,0.06523167]
[1625292958474,0.07025044,33757.0,33756.0,0.06523167]
[1625292961681,0.059,33757.0,33756.0,0.059]
[1625292961932,0.07025056,33757.0,33756.0,0.06523198]
[1625292962533,0.07025056,33757.0,33756.0,0.26229198]
[1625292962633,0.01125056,33757.0,33756.0,0.26229198]
[1625292969397,0.01125056,33757.0,33756.0,1.11491507]
[1625292969644,0.01122729,33760.0,33756.0,1.41449051]
[1625292969745,0.01122729,33760.0,33756.0,6.04709051]
[1625292969843,0.01122729,33760.0,33756.0,7.41057759]
[1625292969944,0.01122684,33762.0,33757.0,0.00624391]
[1625292970043,0.01122684,33762.0,33757.0,0.12424391]
[1625292970195,0.24057544,33766.0,33757.0,0.12424391]
[1625292970196,0.24057544,33766.0,33761.0,0.85172232]
[1625292970294,0.24057544,33766.0,33761.0,0.96972232]
[1625292970394,0.01122642,33765.0,33762.0,0.00624358]
[1625292970495,0.01122642,33765.0,33762.0,0.26167075]
[1625292970596,0.01122642,33765.0,33762.0,0.32067075]
[1625292970947,0.01122642,33765.0,33763.0,0.00624352]
[1625292971098,0.01122642,33765.0,33763.0,0.33942352]
[1625292971447,0.01122642,33765.0,33764.0,0.00624349]
[1625292971548,0.01122642,33765.0,33764.0,0.06524349]
[1625292971698,0.01122642,33765.0,33764.0,0.54639437]
[1625292974203,0.24057544,33766.0,33764.0,0.54639437]
[1625292974407,0.24057544,33766.0,33765.0,0.0062432]
[1625292974655,0.25180225,33766.0,33765.0,0.0652432]
[1625292974856,3.83640225,33766.0,33765.0,0.0652432]
[1625292974956,3.83640225,33766.0,33765.0,0.059]
[1625292976259,3.82517544,33766.0,33765.0,0.059]
[1625292977012,0.24057544,33766.0,33765.0,0.059]
[1625292977812,3.93747544,33766.0,33765.0,0.059]
[1625292978317,0.24057544,33766.0,33765.0,0.059]
[1625292983935,0.24057544,33766.0,33765.0,0.3583122]
[1625292984388,0.24057544,33766.0,33765.0,0.8685515]
[1625292984839,0.24057544,33766.0,33765.0,0.44334187]
[1625292986291,0.24057544,33766.0,33765.0,0.3583122]
[1625292990353,0.24057544,33766.0,33765.0,0.44320028]
[1625292990753,0.24057544,33766.0,33765.0,0.3583122]
[1625292991559,0.24057544,33766.0,33765.0,0.4431887]
[1625292992159,0.24057544,33766.0,33765.0,0.3583122]
[1625292993665,0.24057544,33766.0,33765.0,0.86839091]
[1625292994667,0.24057544,33766.0,33765.0,0.44338568]
[1625292995171,0.24057544,33766.0,33765.0,0.95374648]
[1625292995819,0.24057544,33766.0,33765.0,0.3583122]
[1625292996320,0.24057544,33766.0,33765.0,0.86869035]
[1625292997018,0.24057544,33766.0,33765.0,0.3583122]
[1625292997219,0.24057544,33766.0,33765.0,1.2094863]
[1625292998171,0.24057544,33766.0,33765.0,0.86902461]
[1625292998522,0.24057544,33766.0,33765.0,0.3583122]
[1625293003786,0.24057544,33766.0,33765.0,0.4435508]